fUST/lending_fUST_20240410
["ID","MTS","AMOUNT","RATE_DAILY","PERIOD"]
[322038912,1712712641678,-500.0,0.00022191,2]
[322038913,1712712641688,-731.06,0.00022191,2]
[322038914,1712712641697,-712.78,0.00022191,2]
[322038915,1712712641706,-500.0,0.00022191,2]
[322038916,1712712641715,-557.1,0.00022191,2]
[322038917,1712712641724,-500.0,0.00022191,2]
[322038918,1712712641733,-526.59052446,0.00022191,2]
[322038919,1712712641744,-2530.22,0.00022191,2]
[322038920,1712712641753,-477.49372824,0.00022191,2]
[322038921,1712712641763,-1000.24,0.00022191,2]
[322038922,1712712641772,-1812.46,0.00022191,2]
[322038923,1712712641781,-500.0,0.00022191,2]
[322038924,1712712641790,-500.0,0.00022191,2]
[322038925,1712712641799,-636.92,0.00022191,2]
[322038926,1712712641808,-819.34,0.00022191,2]
[322038927,1712712641817,-1256.85,0.00022191,2]
[322038928,1712712641826,-500.0,0.00022191,2]
[322038929,1712712641835,-500.0,0.00022191,2]
[322038930,1712712641844,-2921.37,0.00022191,2]
[322038931,1712712641853,-1247.96,0.00022191,2]
[322038932,1712712641862,-500.0,0.00022191,2]
[322038933,1712712641871,-500.0,0.00022191,2]
[322038934,1712712641880,-500.0,0.00022191,2]
[322038935,1712712641889,-1219.84,0.00022191,2]
[322038936,1712712641898,-548.87184512,0.00022191,2]
[322038937,1712712641907,-500.0,0.00022191,2]
[322038938,1712712641916,-771.48,0.00022191,2]
[322038939,1712712641925,-914.24,0.00022191,2]
[322038940,1712712641934,-500.0,0.00022191,2]
[322038941,1712712641943,-500.0,0.00022191,2]
[322038942,1712712641953,-1317.1,0.00022191,2]
[322038943,1712712641962,-500.0,0.00022191,2]
[322038944,1712712641970,-500.0,0.00022191,2]
[322038945,1712712641980,-562.97,0.00022191,2]
[322038946,1712712641990,-500.0,0.00022191,2]
[322038947,1712712641999,-500.0,0.00022191,2]
[322038948,1712712642007,-500.0,0.00022191,2]
[322038949,1712712642016,-500.0,0.00022191,2]
[322038950,1712712642025,-2146.66,0.00022191,2]
[322038951,1712712642038,-500.0,0.00022191,2]
[322038952,1712712642047,-4333.89,0.00022191,2]
[322038953,1712712642056,-983.26,0.00022191,2]
[322038954,1712712642065,-500.0,0.00022191,2]
[322038955,1712712642075,-724.59,0.00022191,2]
[322038956,1712712642084,-2515.0,0.00022191,2]
[322038957,1712712642093,-500.0,0.00022191,2]
[322038958,1712712642102,-8284.77,0.00022191,2]
[322038959,1712712642111,-500.0,0.00022191,2]
[322038960,1712712642120,-500.0,0.00022191,2]
[322038961,1712712642128,-612.44,0.00022191,2]
[322038962,1712712642137,-500.0,0.00022191,2]
[322038963,1712712642146,-625.81019471,0.00022191,2]
[322038964,1712712642155,-500.0,0.00022191,2]
[322038965,1712712642164,-1947.63,0.00022191,2]
[322038966,1712712642172,-500.0,0.00022191,2]
[322038967,1712712642182,-500.0,0.00022191,2]
[322038968,1712712642190,-500.0,0.00022191,2]
[322038969,1712712642199,-500.0,0.00022191,2]
[322038970,1712712642208,-500.0,0.00022191,2]
[322038971,1712712642217,-574.5,0.00022191,2]
[322038972,1712712642227,-1221.61,0.00022191,2]
[322038973,1712712642236,-886.03,0.00022191,2]
[322038974,1712712642246,-24157.64,0.00022191,2]
[322038975,1712712642255,-500.0,0.00022191,2]
[322038976,1712712642265,-500.0,0.00022191,2]
[322038977,1712712642274,-912.18,0.00022191,2]
[322038978,1712712642283,-500.0,0.00022191,2]
[322038979,1712712642292,-504.87609884,0.00022191,2]
[322038981,1712712642301,-500.0,0.00022191,2]
[322038983,1712712642310,-500.0,0.00022191,2]
[322038985,1712712642320,-500.0,0.00022191,2]
[322038987,1712712642329,-649.4328611,0.00022191,2]
[322038989,1712712642338,-500.0,0.00022191,2]
[322038990,1712712642347,-4391.14,0.00022191,2]
[322038991,1712712642357,-4203.73,0.00022191,2]
[322038992,1712712642366,-512.27269152,0.00022191,2]
[322038993,1712712642375,-1403.94,0.00022191,2]
[322038994,1712712642384,-603.85991666,0.00022191,2]
[322038995,1712712642393,-500.0,0.00022191,2]
[322038996,1712712642402,-500.0,0.00022191,2]
[322038997,1712712642411,-500.0,0.00022191,2]
[322038998,1712712642420,-500.0,0.00022191,2]
[322038999,1712712642430,-500.0,0.00022191,2]
[322039000,1712712642439,-500.0,0.00022191,2]
[322039001,1712712642448,-26325.9,0.00022191,2]
[322039002,1712712642457,-2937.36,0.00022191,2]
[322039003,1712712642467,-444.14668144,0.00022191,2]
[322039004,1712712642476,-500.79271676,0.00022191,2]
[322039005,1712712642486,-4121.64,0.00022191,2]
[322039006,1712712642497,-500.0,0.00022191,2]
[322039007,1712712642507,-1422.6,0.00022191,2]
[322039008,1712712642517,-2218.42,0.00022191,2]
[322039009,1712712642526,-500.0,0.00022191,2]
[322039010,1712712642535,-500.0,0.00022191,2]
[322039011,1712712642544,-5346.62,0.00022191,2]
[322039012,1712712642553,-500.0,0.00022191,2]
[322039013,1712712642563,-935.34,0.00022191,2]
[322039014,1712712642572,-500.0,0.00022191,2]
[322039015,1712712642581,-539.92,0.00022191,2]
[322039016,1712712642591,-500.0,0.00022191,2]
[322039017,1712712642600,-1855.48,0.00022191,2]
[322039018,1712712642610,-763.75,0.00022191,2]
[322039019,1712712642619,-509.28,0.00022191,2]
[322039020,1712712642629,-500.0,0.00022191,2]
[322039021,1712712642639,-500.0,0.00022191,2]
[322039022,1712712642649,-3101.12,0.00022191,2]
[322039023,1712712642659,-506.05242412,0.00022191,2]
[322039024,1712712642670,-8735.92,0.00022191,2]
[322039025,1712712642680,-500.0,0.00022191,2]
[322039026,1712712642690,-500.0,0.00022191,2]
[322039027,1712712642700,-500.0,0.00022191,2]
[322039028,1712712642711,-500.0,0.00022191,2]
[322039029,1712712642720,-2939.07,0.00022191,2]
[322039030,1712712642731,-4518.18,0.00022191,2]
[322039031,1712712642743,-500.0,0.00022191,2]
[322039032,1712712642752,-766.42,0.00022191,2]
[322039033,1712712642763,-1708.06,0.00022191,2]
[322039034,1712712642773,-502.259176,0.00022191,2]
[322039035,1712712642783,-495.68646918,0.00022191,2]
[322039036,1712712642794,-526.44179169,0.00022191,2]
[322039037,1712712642803,-500.0,0.00022191,2]
[322039038,1712712642812,-367.45061101,0.00022191,2]
[322039039,1712712642821,-8411.23,0.00022191,2]
[322039040,1712712642832,-500.0,0.00022191,2]
[322039041,1712712642841,-653.13,0.00022191,2]
[322039042,1712712642850,-500.0,0.00022191,2]
[322039043,1712712642859,-500.0,0.00022191,2]
[322039044,1712712642869,-500.0,0.00022191,2]
[322039045,1712712642878,-3816.3,0.00022191,2]
[322039046,1712712642888,-284.51298921,0.00022191,2]
[322039047,1712712642897,-500.0,0.00022191,2]
[322039048,1712712642906,-578.09,0.00022191,2]
[322039049,1712712642916,-428.58653235,0.00022191,2]
[322039050,1712712642924,-539.83112468,0.00022191,2]
[322039051,1712712642935,-500.0,0.00022191,2]
[322039052,1712712642946,-506.37580024,0.00022191,2]
[322039053,1712712642955,-1469.13,0.00022191,2]
[322039054,1712712642965,-500.0,0.00022191,2]
[322039055,1712712642974,-500.0,0.00022191,2]
[322039056,1712712642983,-1051.6,0.00022191,2]
[322039057,1712712642996,-202.7418102,0.000223,2]
[322039058,1712712643005,-556.7947375,0.000223,2]
[322039059,1712712643015,-202.7418102,0.000223,2]
[322039061,1712712643024,-202.7418102,0.000224,2]
[322039062,1712712643034,-202.7418102,0.000224,2]
[322039063,1712712643045,-202.7418102,0.000224,2]
[322039064,1712712643054,-202.7418102,0.000224,2]
[322039065,1712712643064,-500.0,0.00022465,2]
[322039068,1712712643165,-500.0,0.00022465,2]
[322039069,1712712643175,-500.0,0.00022465,2]
[322039070,1712712643184,-500.0,0.00022465,2]
[322039071,1712712643194,-500.0,0.00022465,2]
[322039072,1712712643203,-500.0,0.00022465,2]
[322039074,1712712643213,-513.88637313,0.00022465,2]
[322039075,1712712643222,-500.0,0.00022465,2]
[322039076,1712712643230,-500.0,0.00022465,2]
[322039077,1712712643243,-500.0,0.00022465,2]
[322039078,1712712643252,-1652.37,0.00022465,2]
[322039079,1712712643261,-500.0,0.00022465,2]
[322039081,1712712643270,-500.0,0.00022465,2]
[322039083,1712712643279,-1090.39,0.00022465,2]
[322039085,1712712643288,-500.0,0.00022465,2]
[322039087,1712712643297,-500.0,0.00022465,2]
[322039089,1712712643307,-778.36,0.00022465,2]
[322039092,1712712643316,-683.48,0.00022465,2]
[322039095,1712712643325,-579.45,0.00022465,2]
[322039098,1712712643335,-500.0,0.00022465,2]
[322039100,1712712643344,-500.0,0.00022465,2]
[322039101,1712712643353,-572.78,0.00022465,2]
[322039102,1712712643362,-500.0,0.00022465,2]
[322039103,1712712643372,-748.8,0.00022465,2]
[322039104,1712712643382,-500.0,0.00022465,2]
[322039105,1712712643391,-500.0,0.00022465,2]
[322039106,1712712643401,-500.0,0.00022465,2]
[322039107,1712712643411,-36.6403551,0.00022465,2]
[322039109,1712712643710,-2631.84,0.00021917,2]
[322039110,1712712643720,-2631.84,0.00022191,2]
[322039111,1712712643729,-463.3596449,0.00022465,2]
[322039112,1712712643739,-500.0,0.00022465,2]
[322039113,1712712643748,-500.0,0.00022465,2]
[322039114,1712712643756,-500.0,0.00022465,2]
[322039115,1712712643765,-500.0,0.00022465,2]
[322039116,1712712643774,-500.0,0.00022465,2]
[322039117,1712712643783,-500.0,0.00022465,2]
[322039118,1712712643792,-731.06,0.00022465,2]
[322039119,1712712643801,-712.78,0.00022465,2]
[322039120,1712712643811,-378.2663692,0.00022465,2]
[322039121,1712712643820,-557.1,0.00022465,2]
[322039123,1712712643829,-500.0,0.00022465,2]
[322039125,1712712643839,-2530.22,0.00022465,2]
[322039127,1712712643848,-1000.24,0.00022465,2]
[322039128,1712712643857,-1812.46,0.00022465,2]
[322039129,1712712643866,-87.5617339,0.00022465,2]
[322039130,1712712643994,-202.7418102,0.000217,2]
[322039131,1712712644003,-412.4382661,0.00022465,2]
[322039132,1712712644013,-295.66889682,0.00022465,2]
[322039133,1712712644027,-204.33110318,0.00022465,2]
[322039134,1712712644038,-636.92,0.00022465,2]
[322039135,1712712644049,-12.71192638,0.00022465,2]
[322039136,1712712644061,-806.62807362,0.00022465,2]
[322039137,1712712644071,-1256.85,0.00022465,2]
[322039138,1712712644080,-336.16,0.00022465,2]
[322039139,1712712644090,-500.0,0.00022465,2]
[322039140,1712712644099,-2921.37,0.00022465,2]
[322039141,1712712644109,-422.27529668,0.00022465,2]
[322039142,1712712645418,-825.68470332,0.00022465,2]
[322039143,1712712645428,-500.0,0.00022465,2]
[322039144,1712712645437,-500.0,0.00022465,2]
[322039145,1712712645446,-500.0,0.00022465,2]
[322039146,1712712645455,-1219.84,0.00022465,2]
[322039147,1712712645465,-500.0,0.00022465,2]
[322039148,1712712645474,-771.48,0.00022465,2]
[322039149,1712712645484,-914.24,0.00022465,2]
[322039150,1712712645498,-500.0,0.00022465,2]
[322039151,1712712645507,-500.0,0.00022465,2]
[322039152,1712712645517,-1317.1,0.00022465,2]
[322039153,1712712645527,-500.0,0.00022465,2]
[322039154,1712712645536,-500.0,0.00022465,2]
[322039155,1712712645546,-564.25727124,0.00022465,2]
[322039156,1712712645556,-500.0,0.00022465,2]
[322039157,1712712645565,-607.43959411,0.00022465,2]
[322039158,1712712645575,-2146.66,0.00022465,2]
[322039159,1712712645585,-500.0,0.00022465,2]
[322039160,1712712645594,-4333.89,0.00022465,2]
[322039161,1712712645603,-983.26,0.00022465,2]
[322039162,1712712645613,-724.59,0.00022465,2]
[322039163,1712712645622,-2515.0,0.00022465,2]
[322039164,1712712645632,-500.0,0.00022465,2]
[322039165,1712712645642,-8284.77,0.00022465,2]
[322039166,1712712645652,-500.0,0.00022465,2]
[322039167,1712712645661,-500.0,0.00022465,2]
[322039168,1712712645670,-612.44,0.00022465,2]
[322039169,1712712645680,-500.0,0.00022465,2]
[322039170,1712712645690,-500.0,0.00022465,2]
[322039171,1712712645699,-1947.63,0.00022465,2]
[322039172,1712712645708,-278.54685933,0.00022465,2]
[322039173,1712712645718,-500.0,0.00022465,2]
[322039174,1712712645727,-500.0,0.00022465,2]
[322039175,1712712645736,-500.0,0.00022465,2]
[322039176,1712712645751,-574.5,0.00022465,2]
[322039177,1712712645760,-886.03,0.00022465,2]
[322039178,1712712645769,-24157.64,0.00022465,2]
[322039179,1712712645778,-235.11677349,0.00022465,2]
[322039180,1712712645787,-500.0,0.00022465,2]
[322039181,1712712645796,-912.18,0.00022465,2]
[322039182,1712712645805,-500.0,0.00022465,2]
[322039183,1712712645814,-500.0,0.00022465,2]
[322039184,1712712645823,-500.0,0.00022465,2]
[322039185,1712712645832,-503.1231092,0.00022465,2]
[322039186,1712712645841,-4203.73,0.00022465,2]
[322039187,1712712645850,-1403.94,0.00022465,2]
[322039188,1712712645859,-500.0,0.00022465,2]
[322039189,1712712645869,-500.0,0.00022465,2]
[322039190,1712712645878,-500.0,0.00022465,2]
[322039191,1712712645888,-500.0,0.00022465,2]
[322039192,1712712645897,-26325.9,0.00022465,2]
[322039193,1712712645906,-2937.36,0.00022465,2]
[322039194,1712712645917,-4121.64,0.00022465,2]
[322039195,1712712645926,-500.0,0.00022465,2]
[322039196,1712712645935,-1422.6,0.00022465,2]
[322039197,1712712645945,-2218.42,0.00022465,2]
[322039198,1712712645954,-500.0,0.00022465,2]
[322039199,1712712645963,-500.0,0.00022465,2]
[322039200,1712712645972,-5346.62,0.00022465,2]
[322039201,1712712645981,-500.0,0.00022465,2]
[322039202,1712712645992,-935.34,0.00022465,2]
[322039203,1712712646001,-606.22138732,0.00022465,2]
[322039204,1712712646011,-539.92,0.00022465,2]
[322039205,1712712646020,-500.0,0.00022465,2]
[322039206,1712712646029,-1855.48,0.00022465,2]
[322039207,1712712646039,-763.75,0.00022465,2]
[322039208,1712712646051,-509.28,0.00022465,2]
[322039209,1712712646059,-500.0,0.00022465,2]
[322039210,1712712646069,-500.0,0.00022465,2]
[322039211,1712712646078,-3101.12,0.00022465,2]
[322039212,1712712646087,-8735.92,0.00022465,2]
[322039213,1712712646096,-500.0,0.00022465,2]
[322039214,1712712646105,-500.0,0.00022465,2]
[322039215,1712712646114,-500.0,0.00022465,2]
[322039216,1712712646124,-291.17612306,0.00022465,2]
[322039217,1712712646134,-2939.07,0.00022465,2]
[322039218,1712712646145,-4518.18,0.00022465,2]
[322039219,1712712646154,-766.42,0.00022465,2]
[322039220,1712712646163,-1708.06,0.00022465,2]
[322039222,1712712646172,-500.0,0.00022465,2]
[322039223,1712712646181,-8411.23,0.00022465,2]
[322039224,1712712646190,-500.0,0.00022465,2]
[322039225,1712712646199,-653.13,0.00022465,2]
[322039226,1712712646210,-253.54701778,0.00022465,2]
[322039227,1712712646219,-500.0,0.00022465,2]
[322039228,1712712646228,-413.32184459,0.00022465,2]
[322039229,1712712646237,-3816.3,0.00022465,2]
[322039230,1712712646250,-365.80956703,0.00022465,2]
[322039231,1712712646259,-578.09,0.00022465,2]
[322039232,1712712646268,-500.0,0.00022465,2]
[322039233,1712712646277,-1469.13,0.00022465,2]
[322039235,1712712646286,-500.0,0.00022465,2]
[322039237,1712712646294,-500.0,0.00022465,2]
[322039238,1712712646304,-1051.6,0.00022465,2]
[322039239,1712712646313,-2631.84,0.00022465,2]
[322039240,1712712646323,-153.0,0.00022466,2]
[322039242,1712712646332,-202.7418102,0.000225,2]
[322039244,1712712646342,-202.7418102,0.000225,2]
[322039246,1712712646351,-202.7418102,0.000225,2]
[322039247,1712712646359,-502.01270104,0.00022739,2]
[322039248,1712712646369,-500.0,0.00022739,2]
[322039249,1712712646378,-500.0,0.00022739,2]
[322039250,1712712646388,-500.0,0.00022739,2]
[322039251,1712712646397,-500.0,0.00022739,2]
[322039253,1712712646407,-500.0,0.00022739,2]
[322039254,1712712646416,-500.0,0.00022739,2]
[322039255,1712712646425,-500.0,0.00022739,2]
[322039256,1712712646435,-500.0,0.00022739,2]
[322039258,1712712646444,-1652.37,0.00022739,2]
[322039259,1712712646453,-500.0,0.00022739,2]
[322039260,1712712646462,-500.0,0.00022739,2]
[322039261,1712712646471,-1090.39,0.00022739,2]
[322039262,1712712646480,-500.0,0.00022739,2]
[322039264,1712712646488,-500.0,0.00022739,2]
[322039265,1712712646498,-778.36,0.00022739,2]
[322039266,1712712646507,-683.48,0.00022739,2]
[322039267,1712712646516,-579.45,0.00022739,2]
[322039268,1712712646525,-500.0,0.00022739,2]
[322039269,1712712646534,-500.0,0.00022739,2]
[322039270,1712712646543,-572.78,0.00022739,2]
[322039271,1712712646553,-395.27206747,0.00022739,2]
[322039272,1712712646562,-748.8,0.00022739,2]
[322039273,1712712646571,-500.0,0.00022739,2]
[322039274,1712712646580,-500.0,0.00022739,2]
[322039275,1712712646590,-500.0,0.00022739,2]
[322039276,1712712646599,-526.94971983,0.00022739,2]
[322039277,1712712646608,-500.0,0.00022739,2]
[322039279,1712712646617,-500.0,0.00022739,2]
[322039281,1712712646626,-500.0,0.00022739,2]
[322039283,1712712646635,-500.0,0.00022739,2]
[322039284,1712712646644,-500.0,0.00022739,2]
[322039286,1712712646653,-731.06,0.00022739,2]
[322039287,1712712646663,-712.78,0.00022739,2]
[322039288,1712712646672,-557.1,0.00022739,2]
[322039289,1712712646681,-500.0,0.00022739,2]
[322039290,1712712646690,-2530.22,0.00022739,2]
[322039291,1712712646699,-1000.24,0.00022739,2]
[322039292,1712712646708,-1812.46,0.00022739,2]
[322039293,1712712646717,-420.08363363,0.00022739,2]
[322039294,1712712646727,-500.0,0.00022739,2]
[322039295,1712712646736,-636.92,0.00022739,2]
[322039296,1712712646746,-819.34,0.00022739,2]
[322039297,1712712646755,-1256.85,0.00022739,2]
[322039298,1712712646764,-500.0,0.00022739,2]
[322039299,1712712646773,-2921.37,0.00022739,2]
[322039300,1712712646782,-1247.96,0.00022739,2]
[322039301,1712712646791,-500.0,0.00022739,2]
[322039302,1712712646801,-500.0,0.00022739,2]
[322039303,1712712646810,-500.0,0.00022739,2]
[322039304,1712712646819,-1219.84,0.00022739,2]
[322039305,1712712646828,-500.0,0.00022739,2]
[322039306,1712712646837,-771.48,0.00022739,2]
[322039307,1712712646846,-914.24,0.00022739,2]
[322039308,1712712646854,-500.0,0.00022739,2]
[322039309,1712712646863,-500.0,0.00022739,2]
[322039310,1712712646872,-1317.1,0.00022739,2]
[322039311,1712712646881,-500.0,0.00022739,2]
[322039312,1712712646890,-500.0,0.00022739,2]
[322039313,1712712646899,-500.0,0.00022739,2]
[322039314,1712712646908,-2146.66,0.00022739,2]
[322039315,1712712646917,-500.0,0.00022739,2]
[322039316,1712712646926,-4333.89,0.00022739,2]
[322039317,1712712646935,-983.26,0.00022739,2]
[322039318,1712712646944,-724.59,0.00022739,2]
[322039319,1712712646953,-2515.0,0.00022739,2]
[322039320,1712712646962,-500.0,0.00022739,2]
[322039321,1712712646971,-8284.77,0.00022739,2]
[322039322,1712712646980,-500.0,0.00022739,2]
[322039323,1712712646990,-503.7538856,0.00022739,2]
[322039324,1712712646999,-612.44,0.00022739,2]
[322039325,1712712647008,-500.0,0.00022739,2]
[322039326,1712712647017,-500.0,0.00022739,2]
[322039327,1712712647026,-1947.63,0.00022739,2]
[322039328,1712712647038,-500.0,0.00022739,2]
[322039329,1712712647047,-500.0,0.00022739,2]
[322039330,1712712647056,-500.0,0.00022739,2]
[322039331,1712712647065,-574.5,0.00022739,2]
[322039332,1712712647075,-886.03,0.00022739,2]
[322039333,1712712647084,-24157.64,0.00022739,2]
[322039334,1712712647093,-500.0,0.00022739,2]
[322039335,1712712647102,-912.18,0.00022739,2]
[322039336,1712712647112,-500.0,0.00022739,2]
[322039337,1712712647121,-500.0,0.00022739,2]
[322039338,1712712647130,-500.0,0.00022739,2]
[322039339,1712712647139,-4203.73,0.00022739,2]
[322039340,1712712647148,-1403.94,0.00022739,2]
[322039341,1712712647157,-500.0,0.00022739,2]
[322039342,1712712647166,-500.0,0.00022739,2]
[322039343,1712712647175,-500.0,0.00022739,2]
[322039344,1712712647185,-500.0,0.00022739,2]
[322039345,1712712647194,-2937.36,0.00022739,2]
[322039346,1712712647203,-26325.9,0.00022739,2]
[322039347,1712712647213,-4002.51176914,0.00022739,2]
[322039348,1712712647227,-119.12823086,0.00022739,2]
[322039349,1712712647236,-342.87176914,0.00022739,2]
[322039352,1712712684884,1017.61018077,0.00020901,2]
[322039354,1712712730240,446.24503983,0.00020639,2]
[322039355,1712712793594,285.061879,0.00025,30]
[322039356,1712712859304,1212.671592,0.00020564,2]
[322039357,1712712904692,1088.0,0.0002499,35]
[322039358,1712712905168,1088.0,0.0002498,35]
[322039359,1712712905648,1088.0,0.0002497,35]
[322039360,1712713031433,297.49669322,0.00020639,2]
[322039361,1712713105307,2500.0,0.0002154,7]
[322039364,1712713264768,57.39560812,0.00024647,35]
[322039365,1712713305675,24900.0,0.00020495,2]
[322039368,1712713332777,464.45088279,0.00020639,2]
[322039370,1712713360275,745.056487,0.00020666,2]
[322039374,1712713385403,247.77431208,0.00020639,2]
[322039381,1712713388252,154.98450155,0.00020639,2]
[322039383,1712713388604,691.04683546,0.00020639,2]
[322039390,1712713399395,247.77431208,0.00020639,2]
[322039401,1712713406599,691.04683546,0.00020639,2]
[322039407,1712713410225,154.98450155,0.00020639,2]
[322039409,1712713417645,259.38288188,0.00020639,2]
[322039412,1712713422603,691.04683546,0.00020639,2]
[322039419,1712713430298,154.98450155,0.00020639,2]
[322039423,1712713442606,162.45741879,0.00020639,2]
[322039427,1712713446225,154.98450155,0.00020639,2]
[322039435,1712713464231,154.98450155,0.00020639,2]
[322039436,1712713465662,7145.5308955,0.0002065,2]
[322039442,1712713484227,215.0625343,0.0002065,2]
[322039443,1712713486733,200.0,0.00020635,2]
[322039457,1712713580372,597.7743981,0.00020647,2]
[322039462,1712713633900,309.63392186,0.0001944,2]
[322039491,1712713754644,179.103104,0.00020353,2]
[322039512,1712713831901,-562.4278214,0.00021368,2]
[322039513,1712713831910,-2121.71958913,0.00021369,2]
[322039514,1712713831920,-887.0189653,0.00021369,2]
[322039515,1712713831929,-2093.77755635,0.0002137,2]
[322039516,1712713831939,-1310.05606782,0.0002137,2]
[322039536,1712713837977,-556.3609895,0.0002137,2]
[322039537,1712713837987,-300.0,0.00021371,2]
[322039538,1712713837997,-154.98450155,0.00021371,2]
[322039539,1712713838006,-687.372286,0.00021372,2]
[322039540,1712713838015,-5567.94409063,0.00021372,2]
[322039541,1712713838024,-868.7486336,0.00021372,2]
[322039542,1712713838034,-188.68019824,0.00021372,2]
[322039543,1712713838043,-548.90126628,0.00021373,2]
[322039544,1712713838053,-470.13868753,0.00021373,2]
[322039545,1712713838063,-473.35415897,0.00021374,2]
[322039546,1712713838072,-524.8635464,0.00021374,2]
[322039547,1712713838082,-300.0,0.00021378,2]
[322039548,1712713838092,-379.78325215,0.00021381,2]
[322039549,1712713838102,-6910.12411657,0.00021382,2]
[322039550,1712713838111,-300.0,0.00021385,2]
[322039551,1712713838120,-159.85993104,0.00021433,2]
[322039552,1712713838130,-279.30306415,0.00021699,2]
[322039553,1712713838139,-1474.71118806,0.00021817,2]
[322039554,1712713838149,-427.50490758,0.00021817,2]
[322039555,1712713838161,-427.50490754,0.00021886,2]
[322039556,1712713838173,-3753.37567198,0.00021915,2]
[322039557,1712713838184,-562.40216021,0.00021915,2]
[322039558,1712713838208,-940.54502632,0.00021916,2]
[322039559,1712713838219,-469.06036887,0.00021916,2]
[322039572,1712713838229,-1597.59344875,0.00021916,2]
[322039575,1712713838374,-200.93433575,0.00021916,2]
[322039576,1712713838384,-500.0,0.00021917,2]
[322039578,1712713838395,-507.40810054,0.00021917,2]
[322039580,1712713838407,-500.0,0.00021917,2]
[322039582,1712713838417,-308.47780165,0.00021917,2]
[322039584,1712713838427,-954.71,0.00021917,2]
[322039586,1712713838437,-500.0,0.00021917,2]
[322039588,1712713838446,-598.39,0.00021917,2]
[322039590,1712713838456,-500.0,0.00021917,2]
[322039592,1712713838464,-500.0,0.00021917,2]
[322039594,1712713838473,-500.0,0.00021917,2]
[322039596,1712713838485,-505.20185528,0.00021917,2]
[322039598,1712713838495,-504.88708061,0.00021917,2]
[322039600,1712713838505,-502.30764519,0.00021917,2]
[322039602,1712713838514,-500.0,0.00021917,2]
[322039605,1712713838524,-508.52048383,0.00021917,2]
[322039607,1712713838534,-518.85610216,0.00021917,2]
[322039609,1712713838543,-516.50037743,0.00021917,2]
[322039611,1712713838553,-501.0986481,0.00021917,2]
[322039613,1712713838562,-509.18143609,0.00021917,2]
[322039614,1712713838573,-492.16815686,0.00021917,2]
[322039616,1712713838582,-500.0,0.00021917,2]
[322039618,1712713838591,-531.22,0.00021917,2]
[322039620,1712713838601,-1511.38,0.00021917,2]
[322039622,1712713838611,-500.0,0.00021917,2]
[322039624,1712713838620,-500.0,0.00021917,2]
[322039627,1712713838630,-500.0,0.00021917,2]
[322039629,1712713838639,-500.0,0.00021917,2]
[322039631,1712713838649,-507.17840605,0.00021917,2]
[322039633,1712713838660,-500.0,0.00021917,2]
[322039635,1712713838669,-1542.66,0.00021917,2]
[322039637,1712713838679,-500.0,0.00021917,2]
[322039639,1712713838688,-500.0,0.00021917,2]
[322039641,1712713838698,-500.0,0.00021917,2]
[322039643,1712713838707,-455.49513062,0.00021917,2]
[322039645,1712713838716,-504.62912328,0.00021917,2]
[322039647,1712713838725,-736.34,0.00021917,2]
[322039649,1712713838735,-655.56,0.00021917,2]
[322039650,1712713838744,-507.82,0.00021917,2]